[Event "Odense-ch Mester-1 2018"]
[Site "Odense"]
[Date "2018.10.12"]
[Round "1"]
[White "Ostergaard, Rasmus"]
[Black "Thorsbro, Peter"]
[Result "1-0"]
[ECO "A45"]
[WhiteElo "2114"]
[BlackElo "2101"]
[Annotator "ChessBase"]
[PlyCount "30"]
[EventDate "2018.10.12"]
[EventType "tourn"]
[EventCountry "DEN"]
[SourceTitle "playchess.com"]
[Source "ChessBase"]
[SourceQuality "1"]
[TimeControl "40/5400+30:1800+30"]

1. d4 {[%emt 0:00:00]} Nf6 {[%emt 0:00:00]} 2. Bg5 {[%emt 0:00:00]} d5 {[%emt 0:00:18]} 3. e3 {[%emt 0:00:12]} c6 {[%emt 0:01:23]} 4. Bd3 {[%emt 0:02:11]} g6 {[%emt 0:03:02]} 5. Nf3 {[%emt 0:01:55]} Bg7 {[%emt 0:00:10]} 6. O-O {[%emt 0:00:28]} O-O {[%emt 0:00:39]} 7. c4 {[%emt 0:00:23]} Re8 {[%emt 0:01:34]} 8. cxd5 {[%emt 0:00:47]} cxd5 {[%emt 0:00:07]} 9. Nc3 {[%emt 0:00:19]} Nc6 {[%emt 0:00:36]} 10. Qb3 {[%emt 0:00:51]} e6 {[%emt 0:06:40]} 11. h3 {[%emt 0:00:29]} Na5 {[%emt 0:04:07]} 12. Qc2 {[%emt 0:00:15]} Bd7 {[%emt 0:00:19]} 13. Ne5 {[%emt 0:07:46]} Qc7 {[%emt 0:06:25]} 14. Bxf6 {[%emt 0:00:39]} Bxf6 {[%emt 0:00:03]} 15. Nxd5 {[%emt 0:00:14]} Bxe5 1-0

[Event "Odense-ch Mester-1 2018"]
[Site "Odense"]
[Date "2018.10.12"]
[Round "1"]
[White "Rossen, Claus"]
[Black "Filip Rendboe (2088), FM John"]
[Result "0-1"]
[ECO "B34"]
[WhiteElo "2104"]
[BlackElo "2088"]
[Annotator "ChessBase"]
[PlyCount "28"]
[EventDate "2018.10.12"]
[EventType "tourn"]
[EventCountry "DEN"]
[SourceTitle "playchess.com"]
[Source "ChessBase"]
[SourceQuality "1"]
[TimeControl "40/5400+30:1800+30"]

1. e4 {[%emt 0:00:00]} c5 {[%emt 0:00:00]} 2. Nf3 {[%emt 0:00:00]} Nc6 {[%emt 0:00:00]} 3. d4 {[%emt 0:00:02]} cxd4 {[%emt 0:00:00]} 4. Nxd4 {[%emt 0:00:05]} Nf6 {[%emt 0:01:00]} 5. Nc3 {[%emt 0:00:20]} e5 {[%emt 0:00:13]} 6. Ndb5 {[%emt 0:00:16]} d6 {[%emt 0:00:21]} 7. Nd5 {[%emt 0:00:06]} Nxd5 {[%emt 0:00:48]} 8. exd5 {[%emt 0:00:07]} Ne7 {[%emt 0:04:22]} 9. c3 {[%emt 0:02:18]} Nf5 {[%emt 0:01:43]} 10. g4 {[%emt 0:21:20]} Nh4 {[%emt 0:12:26]} 11. Qa4 {[%emt 0:01:32]} Bd7 {[%emt 0:01:15]} 12. Qb4 {[%emt 0:00:28]} a6 {[%emt 0:03:24]} 13. Nxd6+ {[%emt 0:07:09]} Bxd6 {[%emt 0:00:19]} 14. Qxd6 {[%emt 0:00:07]} Nf3+ 0-1

[Event "Odense-ch Mester-1 2018"]
[Site "Odense"]
[Date "2018.10.12"]
[Round "1"]
[White "Thestrup Østergaard (2075), Rasmus"]
[Black "Thorsbro, Peter"]
[Result "1-0"]
[ECO "A45"]
[WhiteElo "2075"]
[BlackElo "2101"]
[Annotator "ChessBase"]
[PlyCount "29"]
[EventDate "2018.10.12"]
[EventType "tourn"]
[EventCountry "DEN"]
[SourceTitle "playchess.com"]
[Source "ChessBase"]
[SourceQuality "1"]
[TimeControl "40/5400+30:1800+30"]

1. d4 {[%emt 0:00:00]} Nf6 {[%emt 0:00:00]} 2. Bg5 {[%emt 0:00:00]} d5 {[%emt 0:00:18]} 3. e3 {[%emt 0:00:12]} c6 {[%emt 0:01:23]} 4. Bd3 {[%emt 0:02:11]} g6 {[%emt 0:03:02]} 5. Nf3 {[%emt 0:01:55]} Bg7 {[%emt 0:00:10]} 6. O-O {[%emt 0:00:28]} O-O {[%emt 0:00:39]} 7. c4 {[%emt 0:00:23]} Re8 {[%emt 0:01:34]} 8. cxd5 {[%emt 0:00:47]} cxd5 {[%emt 0:00:07]} 9. Nc3 {[%emt 0:00:19]} Nc6 {[%emt 0:00:36]} 10. Qb3 {[%emt 0:00:51]} e6 {[%emt 0:06:40]} 11. h3 {[%emt 0:00:29]} Na5 {[%emt 0:04:07]} 12. Qc2 {[%emt 0:00:15]} Bd7 {[%emt 0:00:19]} 13. Ne5 {[%emt 0:07:46]} Qc7 {[%emt 0:06:25]} 14. Bxf6 {[%emt 0:00:39]} Bxf6 {[%emt 0:00:03]} 15. Nxd5 {[%emt 0:00:14]} 1-0

[Event "Odense-ch Mester-1 2018"]
[Site "Odense"]
[Date "2018.10.13"]
[Round "3"]
[White "Rossen, Claus"]
[Black "Easwaralingam, Adesh"]
[Result "1-0"]
[ECO "B23"]
[WhiteElo "2104"]
[BlackElo "2159"]
[Annotator "NA"]
[PlyCount "71"]
[EventDate "2018.10.12"]
[EventType "tourn"]
[EventCountry "DEN"]
[SourceTitle "playchess.com"]
[Source "ChessBase"]
[SourceQuality "1"]
[TimeControl "40/5400+30:1800+30"]

1. e4 {[%emt 0:00:00]} c5 {[%emt 0:00:00]} 2. Nc3 {[%emt 0:00:00]} a6 {[%emt 0:00:00]} 3. a4 {[%emt 0:00:00]} e6 {[%emt 0:00:00]} 4. g3 {[%emt 0:05:07]} Nc6 {[%emt 0:00:23]} 5. Bg2 {[%emt 0:00:08]} Nf6 {[%emt 0:00:06]} 6. Nge2 {[%emt 0:01:21]} d6 {[%emt 0:11:08]} 7. O-O {[%emt 0:00:14]} Be7 {[%emt 0:00:28]} 8. d4 {[%emt 0:00:12]} cxd4 {[%emt 0:00:08]} 9. Nxd4 {[%emt 0:00:05]} Nxd4 {[%emt 0:02:17]} 10. Qxd4 {[%emt 0:00:12]} e5 {[%emt 0:00:26]} 11. Qd3 {[%emt 0:01:00]} O-O {[%emt 0:04:38]} 12. a5 {[%emt 0:02:54]} Be6 {[%emt 0:04:10]} 13. Bg5 {[%emt 0:05:15]} Qc7 {[%emt 0:01:31]} 14. Bxf6 {[%emt 0:03:16]} Bxf6 {[%emt 0:00:14]} 15. Rfd1 {[%emt 0:00:05]} Rfd8 {[%emt 0:03:45]} 16. Nd5 {[%emt 0:01:45]} Bxd5 {[%emt 0:00:11]} 17. Qxd5 {[%emt 0:00:45]} Qd7 {[%emt 0:06:47]} 18. c4 {[%emt 0:07:03]} Rac8 {[%emt 0:03:07]} 19. b4 {[%emt 0:02:00]} Qc6 {[%emt 0:02:48]} 20. Bf1 {[%emt 0:07:45]} Kf8 {[%emt 0:10:13]} 21. b5 {[%emt 0:02:25]} Qxd5 {[%emt 0:03:34]} 22. Rxd5 {[%emt 0:00:32]} Rc5 {[%emt 0:01:58]} 23. Rb1 {[%emt 0:02:09]} Rxd5 {[%emt 0:09:37]} 24. cxd5 {[%emt 0:02:57]} Bg5 {[%emt 0:01:59]} 25. bxa6 {[%emt 0:02:48]} bxa6 {[%emt 0:00:12]} 26. Rb6 {[%emt 0:00:31]} Ra8 {[%emt 0:02:13]} 27. Rxd6 {[%emt 0:03:20]} Bd2 {[%emt 0:00:30]} 28. Rd7 {[%emt 0:01:53]} Ke8 {[%emt 0:04:32]} 29. Rb7 {[%emt 0:01:13]} Bxa5 {[%emt 0:02:53]} 30. d6 {[%emt 0:06:27]} Rd8 {[%emt 0:00:43]} 31. Re7+ {[%emt 0:00:31]} Kf8 {[%emt 0:00:05]} 32. Bc4 {[%emt 0:02:42]} f6 {[%emt 0:03:03]} 33. Rf7+ {[%emt 0:00:51]} Kg8 {[%emt 0:00:01]} 34. Rxf6+ {[%emt 0:02:35]} Kh8 {[%emt 0:00:06]} 35. Re6 {[%emt 0:00:20]} Bb4 {[%emt 0:01:54]} 36. d7 {[%emt 0:00:25]} 1-0

[Event "Odense-ch Mester-1 2018"]
[Site "Odense"]
[Date "2018.10.14"]
[Round "4"]
[White "Le Besq, Alexander"]
[Black "Thorsbro, Peter"]
[Result "1-0"]
[ECO "C92"]
[WhiteElo "2113"]
[BlackElo "2101"]
[Annotator "NA"]
[PlyCount "117"]
[EventDate "2018.10.12"]
[EventType "tourn"]
[EventCountry "DEN"]
[SourceTitle "playchess.com"]
[Source "ChessBase"]
[SourceQuality "1"]
[TimeControl "40/5400+30:1800+30"]

1. e4 {[%emt 0:00:00]} e5 {[%emt 0:00:02]} 2. Nf3 {[%emt 0:00:00]} Nc6 {[%emt 0:00:05]} 3. Bb5 {[%emt 0:00:00]} a6 {[%emt 0:00:03]} 4. Ba4 {[%emt 0:00:00]} Nf6 {[%emt 0:00:04]} 5. O-O {[%emt 0:00:05]} Be7 {[%emt 0:00:07]} 6. Re1 {[%emt 0:00:05]} b5 {[%emt 0:00:03]} 7. Bb3 {[%emt 0:00:04]} O-O {[%emt 0:00:14]} 8. h3 {[%emt 0:00:06]} d6 {[%emt 0:01:59]} 9. c3 {[%emt 0:00:07]} Bb7 {[%emt 0:01:27]} 10. d4 {[%emt 0:01:58]} h6 {[%emt 0:06:49]} 11. Nbd2 {[%emt 0:00:29]} Re8 {[%emt 0:01:53]} 12. Nf1 {[%emt 0:00:47]} Bf8 {[%emt 0:00:07]} 13. Ng3 {[%emt 0:00:14]} Na5 {[%emt 0:02:43]} 14. Bc2 {[%emt 0:00:12]} c5 {[%emt 0:00:32] LiveBook: 24 Games} 15. d5 {[%emt 0:02:39]} Bc8 {[%emt 0:05:31] C93: Closed Ruy Lopez: Smyslov Variation} (15... Nc4 16. b3 Nb6 17. Be3 g6 18. Qd2 Kh7 19. Nh2 a5 20. Bd3 b4 21. Bb5 Nbd7 22. a3 bxc3 23. Qxc3 {1-0 (50) Balogh,C (2616)-Melkumyan,H (2541) Kallithea 2008}) 16. Qe2 {[%emt 0:04:49]} Qc7 {[%emt 0:04:15]} 17. b3 {[%emt 0:04:42]} Bd7 {[%emt 0:13:07]} 18. c4 $146 {[%emt 0:02:26]} ({Predecessor:} 18. Nh4 Nb7 19. c4 Rab8 20. Nhf5 bxc4 21. bxc4 Na5 22. Bd3 Rb4 23. Bd2 Rb2 24. Bxa5 {1-0 (24) Contardo Oyarzun,J (2074)-Escudero Donoso,F (2126) Santiago de Chile 2012}) 18... g6 {[%emt 0:22:55]} 19. Bb2 {[%emt 0:04:36]} Bg7 {[%emt 0:03:56]} 20. Rf1 {[%emt 0:07:11]} Rf8 {[%emt 0:05:33]} 21. Rae1 {[%emt 0:08:09]} Rab8 {[%emt 0:07:14]} 22. Ba1 {[%emt 0:01:01]} bxc4 {[%emt 0:01:31]} 23. bxc4 {[%emt 0:00:06]} Nxc4 $2 {[%emt 0:04:05]} ({Black should try} 23... h5 $14) 24. Qxc4 {[%emt 0:01:35]} Bb5 {[%emt 0:00:02]} 25. Qc3 {[%emt 0:00:09]} Bxf1 {[%emt 0:00:02]} 26. Nxf1 {[%emt 0:01:00]} ({Bloß nicht} 26. Rxf1 $6 Rfc8 $16) 26... Nh5 {[%emt 0:02:35]} 27. Qa3 {[%emt 0:06:05]} Nf4 {[%emt 0:03:33]} 28. Ne3 {[%emt 0:01:28]} ({Weaker is} 28. Qxa6 c4 $16) 28... Qc8 {[%emt 0:04:20]} 29. Nc4 {[%emt 0:15:21]} Rb4 {[%emt 0:03:05]} 30. Na5 {[%emt 0:02:28]} ({Weaker is} 30. Nxd6 Qd8 $14) 30... f5 {[%emt 0:03:41]} 31. Nc6 {[%emt 0:01:12]} Rb7 {[%emt 0:00:39]} 32. Nd2 {[%emt 0:06:39]} fxe4 {[%emt 0:02:58]} 33. Bxe4 {[%emt 0:00:11]} Rbf7 {[%emt 0:00:44]} 34. Qg3 {[%emt 0:06:45]} Kh7 {[%emt 0:00:11]} 35. Nf3 {[%emt 0:00:41]} Rf6 {[%emt 0:00:25]} 36. Nh4 {[%emt 0:01:39]} Qe8 {[%emt 0:00:13]} 37. Bc3 {[%emt 0:03:42]} Kh8 {[%emt 0:00:59]} 38. Bd2 {[%emt 0:06:18]} g5 {[%emt 0:00:06]} 39. Nf3 {[%emt 0:00:12]} Qf7 {[%emt 0:00:33]} 40. h4 {[%emt 0:01:43]} gxh4 {[%emt 0:01:03]} 41. Nxh4 {[%emt 0:32:35]} Nxd5 {[%emt 0:07:37]} 42. Ng6+ {[%emt 0:00:00]} Rxg6 {[%emt 0:00:19]} 43. Bxg6 {[%emt 0:00:00]} Qc7 {[%emt 0:03:27]} 44. Na5 {[%emt 0:00:00]} c4 $18 {[%emt 0:08:28]} (44... Nf4 45. Bc2 Qf7) 45. Bc2 {[%emt 0:00:00]} Nf4 {[%emt 0:08:36]} 46. Bxf4 {[%emt 0:11:31]} Rxf4 {[%emt 0:00:02]} 47. Qg6 {[%emt 0:00:41]} Kg8 {[%emt 0:03:33]} 48. Rb1 {[%emt 0:00:47]} Qa7 {[%emt 0:01:38]} 49. Qg3 {[%emt 0:01:18]} Rf7 {[%emt 0:00:01]} 50. Bg6 {[%emt 0:00:32]} Rc7 {[%emt 0:00:10]} 51. Be4 {[%emt 0:00:24]} Qc5 {[%emt 0:00:47]} 52. Rb8+ {[%emt 0:00:21]} Rc8 {[%emt 0:00:01]} 53. Bd5+ {[%emt 0:00:33]} Kh8 {[%emt 0:01:34]} 54. Rxc8+ {[%emt 0:00:23]} Qxc8 {[%emt 0:00:02]} 55. Nxc4 {[%emt 0:00:13]} Qc5 {[%emt 0:00:33]} 56. Qf3 {[%emt 0:00:11]} Qb4 {[%emt 0:00:21]} 57. Qf7 {[%emt 0:00:36]} Qb8 {[%emt 0:01:13]} 58. Nxd6 {[%emt 0:00:27]} e4 {[%emt 0:00:20]} 59. Qe8+ {[%emt 0:01:07]} 1-0

[Event "Odense-ch Mester-1 2018"]
[Site "Odense"]
[Date "2018.10.14"]
[Round "5"]
[White "Ostergaard, Rasmus"]
[Black "Easwaralingam, Adesh"]
[Result "0-1"]
[ECO "A13"]
[WhiteElo "2114"]
[BlackElo "2159"]
[Annotator "NA"]
[PlyCount "64"]
[EventDate "2018.10.12"]
[EventType "tourn"]
[EventCountry "DEN"]
[SourceTitle "playchess.com"]
[Source "ChessBase"]
[SourceQuality "1"]
[TimeControl "40/5400+30:1800+30"]

1. Nf3 {[%emt 0:00:00]} Nf6 {[%emt 0:00:00]} 2. b3 {[%emt 0:00:00]} d5 {[%emt 0:00:17]} 3. e3 {[%emt 0:01:16]} e6 {[%emt 0:00:56]} 4. Bb2 {[%emt 0:00:17]} b6 {[%emt 0:01:44]} 5. c4 {[%emt 0:00:35]} Bb7 {[%emt 0:01:06]} 6. Be2 {[%emt 0:00:41]} Be7 {[%emt 0:01:17]} 7. O-O {[%emt 0:01:00]} O-O {[%emt 0:00:28]} 8. cxd5 {[%emt 0:12:20]} Nxd5 {[%emt 0:02:51]} 9. d4 {[%emt 0:01:48]} Nd7 {[%emt 0:02:04]} 10. Nbd2 {[%emt 0:01:17]} c5 {[%emt 0:03:43]} 11. Rc1 {[%emt 0:01:37]} Rc8 {[%emt 0:02:22]} 12. Nc4 {[%emt 0:02:22]} Qc7 {[%emt 0:07:32]} 13. dxc5 {[%emt 0:02:05]} Bxc5 {[%emt 0:01:05]} 14. Nfe5 {[%emt 0:02:53]} Nxe5 {[%emt 0:00:37]} 15. Bxe5 {[%emt 0:00:21]} Qe7 {[%emt 0:00:07]} 16. Bd4 {[%emt 0:21:45]} Qg5 {[%emt 0:10:54]} 17. Bf3 {[%emt 0:01:49]} Rfd8 {[%emt 0:01:07]} 18. Bxc5 {[%emt 0:00:42]} Nc3 {[%emt 0:00:57]} 19. Be7 Qxe7 {[%emt 0:06:44]} 20. Qc2 {[%emt 0:04:50]} Bxf3 {[%emt 0:01:22]} 21. gxf3 {[%emt 0:01:29]} Qg5+ {[%emt 0:17:55]} 22. Kh1 {[%emt 0:00:50]} Qh5 {[%emt 0:02:47]} 23. Qxc3 {[%emt 0:02:21]} Qxf3+ {[%emt 0:00:06]} 24. Kg1 {[%emt 0:00:10]} Rc5 {[%emt 0:01:55]} 25. Ne5 {[%emt 0:00:56]} Qf5 {[%emt 0:00:29]} 26. Qb4 {[%emt 0:06:02]} Rxe5 {[%emt 0:09:50]} 27. Qe7 {[%emt 0:02:56]} Qg4+ {[%emt 0:00:47]} 28. Kh1 {[%emt 0:00:12]} Qf3+ {[%emt 0:00:20]} 29. Kg1 {[%emt 0:00:08]} Rf8 {[%emt 0:01:01]} 30. Rfd1 {[%emt 0:00:43]} h6 {[%emt 0:00:41]} 31. Rd7 {[%emt 0:01:14]} Rg5+ {[%emt 0:00:26]} 32. Kf1 {[%emt 0:00:20]} Qh1+ {[%emt 0:00:05]} 0-1

[Event "Odense-ch Mester-1 2018"]
[Site "Odense"]
[Date "2018.10.14"]
[Round "5"]
[White "Thorsbro, Peter"]
[Black "Rossen, Claus"]
[Result "1/2-1/2"]
[ECO "A42"]
[WhiteElo "2101"]
[BlackElo "2104"]
[Annotator "ChessBase"]
[PlyCount "112"]
[EventDate "2018.10.12"]
[EventType "tourn"]
[EventCountry "DEN"]
[SourceTitle "playchess.com"]
[Source "ChessBase"]
[SourceQuality "1"]
[TimeControl "40/5400+30:1800+30"]

1. d4 {[%emt 0:00:00]} g6 {[%emt 0:00:00]} 2. c4 {[%emt 0:00:00]} Bg7 {[%emt 0:00:16]} 3. e4 {[%emt 0:00:14]} d6 {[%emt 0:00:06]} 4. Nc3 {[%emt 0:00:49]} Nc6 {[%emt 0:00:06]} 5. Be3 {[%emt 0:00:26]} e5 {[%emt 0:00:17]} 6. Nge2 {[%emt 0:00:24]} exd4 {[%emt 0:03:18]} 7. Nxd4 {[%emt 0:00:09]} Nge7 {[%emt 0:00:06]} 8. Be2 {[%emt 0:00:42]} O-O {[%emt 0:00:07]} 9. O-O {[%emt 0:00:26]} f5 {[%emt 0:04:10]} 10. exf5 {[%emt 0:06:28]} Nxf5 {[%emt 0:03:22]} 11. Nxf5 {[%emt 0:00:41]} Bxf5 {[%emt 0:00:49]} 12. c5 {[%emt 0:08:18]} Kh8 {[%emt 0:09:48]} 13. cxd6 {[%emt 0:02:51]} Qxd6 {[%emt 0:02:33]} 14. Qxd6 {[%emt 0:00:54]} cxd6 {[%emt 0:00:05]} 15. Rad1 {[%emt 0:00:16]} Be5 {[%emt 0:03:35]} 16. Rd2 {[%emt 0:01:29]} Be6 {[%emt 0:12:17]} 17. Rfd1 {[%emt 0:02:14]} a6 {[%emt 0:01:41]} 18. Nd5 {[%emt 0:14:44]} Bxd5 {[%emt 0:07:34]} 19. Rxd5 {[%emt 0:00:04]} Bxb2 {[%emt 0:00:33]} 20. Rxd6 {[%emt 0:03:58]} Rad8 {[%emt 0:07:03]} 21. Rxd8 {[%emt 0:14:20]} Rxd8 {[%emt 0:00:06]} 22. Rb1 {[%emt 0:01:34]} Bd4 {[%emt 0:03:13]} 23. Rxb7 {[%emt 0:00:56]} Bxe3 {[%emt 0:01:09]} 24. fxe3 {[%emt 0:00:02]} Rd2 {[%emt 0:01:40]} 25. Bxa6 {[%emt 0:03:02]} Rxa2 {[%emt 0:00:47]} 26. Bb5 {[%emt 0:04:35]} Ne5 {[%emt 0:01:06]} 27. Re7 {[%emt 0:01:35]} Ng4 {[%emt 0:01:56]} 28. h3 {[%emt 0:01:51]} Ra1+ {[%emt 0:04:47]} 29. Bf1 {[%emt 0:00:03]} Nh2 {[%emt 0:00:04]} 30. Kxh2 {[%emt 0:00:05]} Rxf1 {[%emt 0:00:03]} 31. Kg3 {[%emt 0:00:32]} Kg8 {[%emt 0:00:58]} 32. Kg4 {[%emt 0:01:11]} h6 {[%emt 0:02:41]} 33. g3 {[%emt 0:04:59]} Rf2 {[%emt 0:07:49]} 34. Ra7 {[%emt 0:11:34]} Rf5 {[%emt 0:06:37]} 35. Ra3 {[%emt 0:09:32]} h5+ {[%emt 0:09:39]} 36. Kh4 {[%emt 0:00:12]} Rf3 {[%emt 0:00:24]} 37. g4 {[%emt 0:01:30]} Kf7 {[%emt 0:02:15]} 38. Ra7+ {[%emt 0:02:35]} Kf8 {[%emt 0:00:26]} 39. Ra8+ {[%emt 0:01:02]} Kf7 {[%emt 0:00:05]} 40. Ra7+ {[%emt 0:00:02]} Kf8 {[%emt 0:00:07]} 41. gxh5 {[%emt 0:32:22]} gxh5 {[%emt 0:30:04]} 42. Ra3 {[%emt 0:00:09]} Kf7 {[%emt 0:00:13]} 43. Kxh5 {[%emt 0:00:12]} Rxh3+ {[%emt 0:00:09]} 44. Kg4 {[%emt 0:00:02]} Rh1 {[%emt 0:01:06]} 45. Kf5 {[%emt 0:00:15]} Rh5+ {[%emt 0:00:05]} 46. Ke4 {[%emt 0:00:05]} Ke6 {[%emt 0:00:20]} 47. Ra6+ {[%emt 0:00:04]} Ke7 {[%emt 0:00:03]} 48. Kd4 {[%emt 0:00:08]} Rg5 {[%emt 0:00:20]} 49. e4 {[%emt 0:00:07]} Rh5 {[%emt 0:00:03]} 50. Ke3 {[%emt 0:00:38]} Rb5 {[%emt 0:00:28]} 51. Kf4 {[%emt 0:00:07]} Rc5 {[%emt 0:00:03]} 52. Rh6 {[%emt 0:00:31]} Rb5 {[%emt 0:00:07]} 53. Ra6 {[%emt 0:02:59]} Rc5 {[%emt 0:00:08]} 54. Ke3 {[%emt 0:00:04]} Rb5 {[%emt 0:00:12]} 55. Kd4 {[%emt 0:00:04]} Rh5 {[%emt 0:00:06]} 56. e5 {[%emt 0:00:14]} Rh1 {[%emt 0:00:06]} 1/2-1/2